[Event "3eme tournoi de MI de JUVISY"]
[Site "Juvisy/Orge, France"]
[Date "2019.07.05"]
[Round "7.4"]
[White "MSELLEK, Ilyass"]
[Black "BON, Michael"]
[Result "0-1"]
[ECO "D05"]
[WhiteElo "2239"]
[BlackElo "2400"]
[PlyCount "158"]
[EventDate "2019.??.??"]
[WhiteTeam "Tremblay"]
[BlackTeam "Canal St Martin"]
[TimeControl "6600+1205"]
[WhiteClock "0:01:05"]
[BlackClock "0:04:15"]

1. d4 {[%emt 0:00:03]} Nf6 {[%emt 0:03:45]} 2. Nf3 {[%emt 0:00:04]} e6 {[%emt
0:10:44]} 3. e3 {[%emt 0:05:15]} b6 {[%emt 0:05:30]} 4. Bd3 {[%emt 0:00:03]}
Bb7 {[%emt 0:00:19]} 5. O-O {[%emt 0:00:08]} Be7 {[%emt 0:10:31]} 6. Nbd2 {
[%emt 0:00:05]} d5 {[%emt 0:08:38]} 7. b3 {[%emt 0:02:38]} O-O {[%emt 0:02:24]}
8. Bb2 {[%emt 0:00:03]} Nbd7 {[%emt 0:04:48]} 9. Ne5 {[%emt 0:01:40]} Nxe5 {
[%emt 0:05:32]} 10. dxe5 {[%emt 0:01:34]} Nd7 {[%emt 0:00:05]} 11. f4 {[%emt 0:
02:22]} g6 {[%emt 0:03:49]} 12. Qg4 {[%emt 0:20:31]} Nc5 {[%emt 0:09:04]} 13.
Be2 {[%emt 0:04:20]} a5 {[%emt 0:07:35]} 14. a3 {[%emt 0:17:59]} Ba6 {[%emt 0:
14:05]} 15. Bxa6 {[%emt 0:01:00]} Rxa6 {[%emt 0:00:09]} 16. Qe2 {[%emt 0:00:39]
} Ra8 {[%emt 0:01:10]} 17. Rad1 {[%emt 0:01:43]} Qd7 {[%emt 0:03:19]} 18. e4
dxe4 19. Nxe4 {[%emt 0:07:28]} Qc6 {[%emt 0:00:03]} 20. Nf6+ {[%emt 0:02:13]}
Bxf6 {[%emt 0:02:27]} 21. exf6 {[%emt 0:00:04]} Rad8 {[%emt 0:00:11]} 22. Rfe1
{[%emt 0:10:49]} Rd5 {[%emt 0:02:10]} 23. b4 {[%emt 0:03:54]} axb4 {[%emt 0:01:
11]} 24. axb4 Na4 {[%emt 0:00:40]} 25. Rxd5 {[%emt 0:01:02]} exd5 {[%emt 0:01:
42]} 26. Be5 {[%emt 0:00:04]} Nc3 {[%emt 0:00:51]} 27. Qd2 {[%emt 0:00:34]} Ne4
{[%emt 0:00:12]} 28. Rxe4 {[%emt 0:00:35]} dxe4 {[%emt 0:00:30]} 29. f5 {[%emt
0:00:05]} e3 {[%emt 0:01:28]} 30. Qxe3 {[%emt 0:00:19]} Rd8 {[%emt 0:03:25]}
31. h3 {[%emt 0:01:50]} Qe8 {[%emt 0:00:37]} 32. Qh6 {[%emt 0:08:49]} Qf8 {
[%emt 0:00:05]} 33. Qf4 {[%emt 0:00:42]} c5 {[%emt 0:01:04]} 34. b5 {[%emt 0:
00:51]} Rd1+ {[%emt 0:00:46]} 35. Kh2 {[%emt 0:00:01]} Rd5 {[%emt 0:01:22]} 36.
c4 {[%emt 0:00:24]} Rd7 {[%emt 0:01:05]} 37. Qf3 {[%emt 0:12:07]} Qe8 {[%emt 0:
01:10]} 38. Bg3 {[%emt 0:00:10]} Qd8 {[%emt 0:00:58]} 39. Be5 {[%emt 0:03:09]}
Qe8 {[%emt 0:00:20]} 40. Bg3 {[%emt 0:00:09]} Qd8 {[%emt 0:00:14]} 41. Qc6 {
[%emt 0:07:37]} g5 {[%emt 0:04:22]} 42. Be5 {[%emt 0:02:07]} h6 {[%emt 0:01:48]
} 43. Qf3 {[%emt 0:07:22]} Kh7 {[%emt 0:01:52]} 44. Qc6 {[%emt 0:01:25]} Rd1 {
[%emt 0:05:48]} 45. Qb7 {[%emt 0:09:47]} Rd7 {[%emt 0:00:55]} 46. Qc6 {[%emt 0:
00:20]} Ra7 {[%emt 0:00:23]} 47. Bd6 {[%emt 0:01:17]} Qxf6 {[%emt 0:04:26]} 48.
Bb8 {[%emt 0:04:52]} Qxc6 {[%emt 0:07:31]} 49. bxc6 {[%emt 0:00:02]} Re7 {
[%emt 0:00:08]} 50. Bd6 {[%emt 0:00:12]} Re8 {[%emt 0:00:31]} 51. c7 {[%emt 0:
00:07]} Kg7 {[%emt 0:04:31]} 52. Be7 {[%emt 0:08:47]} Rc8 {[%emt 0:00:09]} 53.
Bd8 {[%emt 0:00:26]} Kf8 {[%emt 0:00:28]} 54. Kg3 {[%emt 0:01:50]} Ke8 {[%emt
0:01:37]} 55. Kf3 {[%emt 0:00:05]} Kd7 {[%emt 0:01:38]} 56. Ke4 {[%emt 0:00:06]
} Kd6 {[%emt 0:00:10]} 57. g3 {[%emt 0:00:46]} Ra8 {[%emt 0:01:06]} 58. h4 {
[%emt 0:00:14]} gxh4 {[%emt 0:00:32]} 59. gxh4 {[%emt 0:00:01]} Rc8 {[%emt 0:
01:06]} 60. h5 {[%emt 0:01:03]} Ra8 {[%emt 0:00:30]} 61. Kf4 {[%emt 0:00:10]}
Rc8 {[%emt 0:08:54]} 62. Ke4 {[%emt 0:00:01]} Rxc7 {[%emt 0:01:26]} 63. Bxc7+ {
[%emt 0:00:09]} Kxc7 {[%emt 0:00:03]} 64. Ke5 {[%emt 0:00:52]} Kd7 {[%emt 0:00:
41]} 65. Kf6 {[%emt 0:00:21]} b5 {[%emt 0:00:42]} 66. Kxf7 {[%emt 0:02:51]}
bxc4 {[%emt 0:00:04]} 67. Kg7 {[%emt 0:00:40]} c3 {[%emt 0:00:05]} 68. f6 {
[%emt 0:00:03]} c2 {[%emt 0:00:03]} 69. f7 {[%emt 0:00:09]} c1=Q {[%emt 0:00:
06]} 70. f8=Q {[%emt 0:00:06]} Qg5+ {[%emt 0:00:06]} 71. Kh8 {[%emt 0:02:30]}
Qd8 {[%emt 0:01:32]} 72. Qxd8+ {[%emt 0:00:08]} Kxd8 {[%emt 0:00:03]} 73. Kg7 {
[%emt 0:00:04]} c4 {[%emt 0:01:08]} 74. Kxh6 {[%emt 0:00:04]} c3 {[%emt 0:00:
03]} 75. Kg7 {[%emt 0:00:05]} c2 {[%emt 0:00:03]} 76. h6 {[%emt 0:00:08]} c1=Q
{[%emt 0:00:05]} 77. h7 {[%emt 0:00:05]} Qg5+ {[%emt 0:01:24]} 78. Kf7 {[%emt
0:02:47]} Qe7+ {[%emt 0:00:15]} 79. Kg8 {[%emt 0:00:11]} Ke8 {[%emt 0:00:10]}
0-1

[Event "3eme tournoi de MI de JUVISY"]
[Site "Juvisy/Orge, France"]
[Date "2019.07.06"]
[Round "8.2"]
[White "BON, Michael"]
[Black "DELORME, Alban"]
[Result "1-0"]
[ECO "B01"]
[WhiteElo "2400"]
[BlackElo "2327"]
[PlyCount "59"]
[EventDate "2019.??.??"]
[WhiteTeam "Canal St Martin"]
[BlackTeam "Echecs 16"]
[TimeControl "6000+1155"]
[WhiteClock "0:02:54"]
[BlackClock "0:18:09"]

1. e4 {[%emt 0:15:54]} d5 {[%emt 0:01:13]} 2. exd5 {[%emt 0:02:47]} Qxd5 {
[%emt 0:01:21]} 3. d4 {[%emt 0:11:55]} g6 {[%emt 0:04:19]} 4. c4 {[%emt 0:01:
54]} Qd6 {[%emt 0:02:21]} 5. Nc3 {[%emt 0:00:25]} Bg7 {[%emt 0:00:05]} 6. Nf3 {
[%emt 0:18:06]} Nh6 {[%emt 0:16:24]} 7. Nb5 {[%emt 0:02:28]} Qd8 {[%emt 0:01:
32]} 8. Bf4 {[%emt 0:01:22]} Na6 {[%emt 0:00:07]} 9. Qd2 {[%emt 0:19:44]} Nf5 {
[%emt 0:06:45]} 10. O-O-O {[%emt 0:00:26]} Nd6 {[%emt 0:02:06]} 11. Bh6 {[%emt
0:09:46]} Bf6 {[%emt 0:10:00]} 12. h3 {[%emt 0:08:34]} Bf5 {[%emt 0:01:34]} 13.
g4 {[%emt 0:02:41]} Be4 {[%emt 0:00:08]} 14. Qf4 {[%emt 0:00:52]} Bxf3 {[%emt
0:03:23]} 15. Qxf3 {[%emt 0:00:37]} c6 {[%emt 0:09:06]} 16. Nc3 {[%emt 0:04:20]
} c5 {[%emt 0:03:08]} 17. dxc5 {[%emt 0:08:43]} Nxc5 {[%emt 0:00:01]} 18. Nb5 {
[%emt 0:00:24]} Nce4 {[%emt 0:01:34]} 19. Nxd6+ {[%emt 0:05:42]} Nxd6 {[%emt 0:
00:03]} 20. g5 {[%emt 0:01:16]} Be5 {[%emt 0:02:16]} 21. Qe3 {[%emt 0:00:15]}
Qa5 {[%emt 0:02:25]} 22. f4 {[%emt 0:02:19]} O-O-O {[%emt 0:03:19]} 23. Qxe5 {
[%emt 0:02:03]} Qxa2 {[%emt 0:00:03]} 24. Bd3 {[%emt 0:01:27]} Rhe8 {[%emt 0:
02:43]} 25. Qc3 {[%emt 0:00:53]} Kb8 {[%emt 0:01:04]} 26. Bg7 {[%emt 0:00:16]}
f6 {[%emt 0:02:21]} 27. gxf6 {[%emt 0:02:19]} Nb5 {[%emt 0:00:01]} 28. Qe5+ {
[%emt 0:00:11]} Ka8 {[%emt 0:00:52]} 29. Qxb5 {[%emt 0:00:14]} exf6 {[%emt 0:
00:27]} 30. Be4 {[%emt 0:00:51]} 1-0

[Event "3eme tournoi de MI de JUVISY"]
[Site "Juvisy/Orge, France"]
[Date "2019.07.06"]
[Round "8.3"]
[White "HARUTYUNYAN, Ruben"]
[Black "BELKHODJA, Slim"]
[Result "1/2-1/2"]
[ECO "B00"]
[WhiteElo "2316"]
[BlackElo "2416"]
[PlyCount "100"]
[EventDate "2019.??.??"]
[WhiteTeam "Clichy echecs 92"]
[BlackTeam "J.E.E.N"]
[TimeControl "6600+1060"]
[WhiteClock "0:36:36"]
[BlackClock "0:55:19"]

1. e4 {[%emt 0:05:35]} Nc6 {[%emt 0:00:41]} 2. Nf3 {[%emt 0:00:05]} d6 {[%emt
0:00:36]} 3. d4 {[%emt 0:00:06]} Nf6 {[%emt 0:00:25]} 4. Nc3 {[%emt 0:00:04]}
Bg4 {[%emt 0:00:37]} 5. d5 {[%emt 0:00:45]} Ne5 {[%emt 0:05:44]} 6. Bb5+ {
[%emt 0:07:53]} c6 {[%emt 0:03:55]} 7. Nxe5 {[%emt 0:07:20]} Bxd1 {[%emt 0:00:
15]} 8. dxc6 {[%emt 0:00:04]} dxe5 {[%emt 0:00:07]} 9. c7+ {[%emt 0:01:09]} Qd7
{[%emt 0:00:06]} 10. Bxd7+ {[%emt 0:00:18]} Kxd7 {[%emt 0:00:05]} 11. Kxd1 {
[%emt 0:00:05]} Kxc7 {[%emt 0:03:59]} 12. f3 {[%emt 0:02:46]} e6 {[%emt 0:00:
11]} 13. Be3 {[%emt 0:00:34]} Kc6 {[%emt 0:05:29]} 14. Ke2 {[%emt 0:03:56]} h5
{[%emt 0:03:16]} 15. Rad1 {[%emt 0:06:35]} Be7 {[%emt 0:18:09]} 16. Nb1 {[%emt
0:15:37]} Rhd8 {[%emt 0:06:47]} 17. Nd2 {[%emt 0:01:55]} Ne8 {[%emt 0:04:45]}
18. Nc4 {[%emt 0:05:23]} f6 {[%emt 0:00:08]} 19. Rxd8 {[%emt 0:11:56]} Bxd8 {
[%emt 0:03:20]} 20. a4 {[%emt 0:15:18]} Be7 {[%emt 0:10:25]} 21. Rd1 {[%emt 0:
01:58]} Nd6 {[%emt 0:00:58]} 22. Na5+ {[%emt 0:02:17]} Kc7 {[%emt 0:00:08]} 23.
Rd3 {[%emt 0:05:44]} g5 {[%emt 0:02:57]} 24. Rc3+ {[%emt 0:05:11]} Kd7 {[%emt
0:00:34]} 25. Nb3 {[%emt 0:00:10]} b6 {[%emt 0:01:41]} 26. a5 {[%emt 0:00:05]}
Rb8 {[%emt 0:00:26]} 27. axb6 {[%emt 0:00:41]} axb6 {[%emt 0:00:07]} 28. Nd2 {
[%emt 0:00:09]} g4 {[%emt 0:03:29]} 29. Nc4 {[%emt 0:03:17]} Nxc4 {[%emt 0:01:
26]} 30. Rxc4 {[%emt 0:00:05]} b5 {[%emt 0:00:11]} 31. Rc3 {[%emt 0:00:17]}
gxf3+ {[%emt 0:01:38]} 32. Kxf3 {[%emt 0:01:52]} b4 {[%emt 0:02:10]} 33. Rb3 {
[%emt 0:04:22]} Rc8 {[%emt 0:02:36]} 34. Bd2 {[%emt 0:01:13]} Rxc2 {[%emt 0:03:
13]} 35. Bxb4 {[%emt 0:00:04]} Bxb4 {[%emt 0:00:41]} 36. Rxb4 {[%emt 0:00:02]}
f5 {[%emt 0:00:10]} 37. h4 {[%emt 0:02:26]} Rd2 {[%emt 0:01:40]} 38. Rb7+ {
[%emt 0:00:39]} Kd6 {[%emt 0:00:16]} 39. Rb6+ {[%emt 0:00:50]} Ke7 {[%emt 0:00:
40]} 40. exf5 {[%emt 0:01:12]} exf5 {[%emt 0:00:12]} 41. Rh6 {[%emt 0:00:42]}
Rxb2 {[%emt 0:02:36]} 42. Rxh5 {[%emt 0:00:23]} Rb3+ {[%emt 0:00:24]} 43. Ke2 {
[%emt 0:00:17]} Ke6 {[%emt 0:00:05]} 44. Rg5 {[%emt 0:01:01]} Rb2+ {[%emt 0:04:
40]} 45. Kf3 {[%emt 0:00:36]} Kf6 {[%emt 0:04:11]} 46. g3 {[%emt 0:01:45]} e4+
{[%emt 0:01:25]} 47. Kf4 {[%emt 0:02:31]} Rf2+ {[%emt 0:00:11]} 48. Ke3 {[%emt
0:00:07]} Rf1 {[%emt 0:01:20]} 49. g4 {[%emt 0:01:35]} Rf3+ {[%emt 0:00:27]}
50. Ke2 {[%emt 0:00:06]} fxg4 {[%emt 0:03:38]} 1/2-1/2

[Event "3eme tournoi de MI de JUVISY"]
[Site "Juvisy/Orge, France"]
[Date "2019.07.06"]
[Round "8.4"]
[White "NGUYEN, Vincent"]
[Black "MOUHAMAD, Joachim"]
[Result "1/2-1/2"]
[ECO "C55"]
[WhiteElo "2315"]
[BlackElo "2302"]
[PlyCount "97"]
[EventDate "2019.??.??"]
[WhiteTeam "Juvisy"]
[BlackTeam "Clichy echecs 92"]
[TimeControl "6600+1115"]
[WhiteClock "0:34:51"]
[BlackClock "0:20:31"]

1. e4 {[%emt 0:15:49]} e5 {[%emt 0:00:35]} 2. Nf3 {[%emt 0:00:07]} Nc6 {[%emt
0:00:15]} 3. Bc4 {[%emt 0:00:06]} Be7 {[%emt 0:00:43]} 4. d3 {[%emt 0:01:24]}
Nf6 {[%emt 0:00:11]} 5. a4 {[%emt 0:00:07]} O-O {[%emt 0:00:38]} 6. O-O {[%emt
0:00:07]} d5 {[%emt 0:00:14]} 7. exd5 {[%emt 0:01:05]} Nxd5 {[%emt 0:00:02]} 8.
h3 {[%emt 0:00:39]} Kh8 {[%emt 0:01:23]} 9. Re1 {[%emt 0:00:24]} f6 {[%emt 0:
00:06]} 10. c3 {[%emt 0:09:32]} Be6 {[%emt 0:00:50]} 11. b4 {[%emt 0:05:59]}
Qd7 {[%emt 0:04:23]} 12. Qb3 {[%emt 0:03:24]} Rad8 {[%emt 0:00:40]} 13. Ra2 {
[%emt 0:00:45]} Rfe8 {[%emt 0:07:12]} 14. a5 {[%emt 0:04:18]} a6 {[%emt 0:05:
06]} 15. b5 {[%emt 0:00:45]} axb5 {[%emt 0:00:23]} 16. Qxb5 {[%emt 0:00:16]}
Bf8 {[%emt 0:06:53]} 17. Bd2 {[%emt 0:06:52]} Ra8 {[%emt 0:18:53]} 18. Ra4 {
[%emt 0:14:22]} Ra7 {[%emt 0:02:20]} 19. d4 {[%emt 0:04:57]} Rea8 {[%emt 0:11:
13]} 20. dxe5 {[%emt 0:19:05]} Nxe5 {[%emt 0:00:17]} 21. Nxe5 {[%emt 0:00:36]}
fxe5 {[%emt 0:01:06]} 22. Rxe5 {[%emt 0:03:07]} c6 {[%emt 0:03:40]} 23. Qb2 {
[%emt 0:00:18]} Bd6 {[%emt 0:02:23]} 24. Re1 {[%emt 0:00:45]} b5 {[%emt 0:01:
09]} 25. Bxd5 {[%emt 0:00:32]} Bxd5 {[%emt 0:01:26]} 26. Rg4 {[%emt 0:00:57]}
Be6 {[%emt 0:07:04]} 27. Rge4 {[%emt 0:03:30]} Bc4 {[%emt 0:04:05]} 28. Be3 {
[%emt 0:04:42]} Rxa5 {[%emt 0:00:13]} 29. Bd4 {[%emt 0:00:26]} c5 {[%emt 0:01:
00]} 30. Be5 {[%emt 0:00:04]} Bxe5 {[%emt 0:00:50]} 31. Rxe5 {[%emt 0:00:04]}
Ra2 {[%emt 0:00:34]} 32. Qc1 {[%emt 0:00:18]} Rf8 {[%emt 0:02:00]} 33. f3 {
[%emt 0:03:05]} h6 {[%emt 0:01:31]} 34. Qe3 {[%emt 0:00:53]} Qf7 {[%emt 0:05:
20]} 35. Qxc5 {[%emt 0:05:21]} Rfa8 {[%emt 0:01:16]} 36. Qd6 {[%emt 0:01:48]}
Kh7 {[%emt 0:01:48]} 37. R5e4 {[%emt 0:09:12]} R8a6 {[%emt 0:00:13]} 38. Qd4 {
[%emt 0:00:33]} Rg6 {[%emt 0:00:19]} 39. Rg4 {[%emt 0:00:50]} h5 {[%emt 0:00:
29]} 40. Rxg6 {[%emt 0:02:10]} Qxg6 {[%emt 0:00:02]} 41. Nd2 {[%emt 0:02:37]}
Bd3 {[%emt 0:16:40]} 42. Qf4 {[%emt 0:07:05]} Qb6+ {[%emt 0:01:46]} 43. Kh2 {
[%emt 0:02:21]} Qf2 {[%emt 0:00:18]} 44. Re6 {[%emt 0:03:53]} Qxd2 {[%emt 0:10:
16]} 45. Rh6+ {[%emt 0:00:07]} gxh6 {[%emt 0:00:14]} 46. Qf7+ {[%emt 0:00:03]}
Kh8 {[%emt 0:00:05]} 47. Qf8+ {[%emt 0:00:05]} Kh7 {[%emt 0:00:03]} 48. Qf7+ {
[%emt 0:00:04]} Kh8 {[%emt 0:00:04]} 49. Qf8+ {[%emt 0:01:10]} 1/2-1/2

[Event "3eme tournoi de MI de JUVISY"]
[Site "Juvisy/Orge, France"]
[Date "2019.07.07"]
[Round "9.1"]
[White "MOUHAMAD, Joachim"]
[Black "ONKOUD, Abdelaziz"]
[Result "1/2-1/2"]
[ECO "B06"]
[WhiteElo "2302"]
[BlackElo "2328"]
[PlyCount "65"]
[EventDate "2019.??.??"]
[WhiteTeam "Clichy Echecs 92"]
[BlackTeam "Livry Gargan"]
[TimeControl "6600+1025"]
[WhiteClock "0:06:43"]
[BlackClock "0:45:33"]

1. e4 {[%emt 0:00:02]} d6 {[%emt 0:01:00]} 2. d4 {[%emt 0:00:09]} g6 {[%emt 0:
00:05]} 3. Nc3 {[%emt 0:00:10]} Bg7 {[%emt 0:00:05]} 4. Nf3 {[%emt 0:00:09]} a6
{[%emt 0:00:16]} 5. Bd3 {[%emt 0:00:19]} e6 {[%emt 0:00:25]} 6. O-O {[%emt 0:
01:09]} Ne7 {[%emt 0:00:08]} 7. e5 {[%emt 0:00:38]} Nd7 {[%emt 0:00:44]} 8.
exd6 {[%emt 0:11:09]} cxd6 {[%emt 0:00:31]} 9. Ne4 {[%emt 0:00:51]} Qc7 {[%emt
0:01:00]} 10. Bf4 {[%emt 0:04:13]} e5 {[%emt 0:00:43]} 11. dxe5 {[%emt 0:07:15]
} dxe5 {[%emt 0:00:17]} 12. Bg5 {[%emt 0:17:35]} f6 {[%emt 0:07:53]} 13. Nd6+ {
[%emt 0:04:47]} Kf8 {[%emt 0:02:27]} 14. Nxc8 {[%emt 0:04:16]} Rxc8 {[%emt 0:
00:17]} 15. Bd2 {[%emt 0:07:52]} Kf7 {[%emt 0:02:03]} 16. b3 {[%emt 0:01:18]}
Rhd8 {[%emt 0:00:39]} 17. Bc4+ {[%emt 0:02:11]} Ke8 {[%emt 0:01:56]} 18. Rc1 {
[%emt 0:01:57]} b5 {[%emt 0:04:14]} 19. Be2 {[%emt 0:04:55]} Nc5 {[%emt 0:01:
52]} 20. Qe1 {[%emt 0:00:51]} Qb7 {[%emt 0:16:41]} 21. Ba5 {[%emt 0:02:11]} Rd7
{[%emt 0:02:03]} 22. b4 {[%emt 0:12:03]} Ne6 {[%emt 0:01:40]} 23. c4 {[%emt 0:
00:13]} Nf4 {[%emt 0:00:58]} 24. g3 {[%emt 0:03:25]} Nxe2+ {[%emt 0:07:36]} 25.
Qxe2 {[%emt 0:00:02]} bxc4 {[%emt 0:00:19]} 26. Nd2 {[%emt 0:01:39]} c3 {[%emt
0:03:20]} 27. Ne4 {[%emt 0:00:29]} Nf5 {[%emt 0:03:53]} 28. Rxc3 {[%emt 0:12:
28]} Rxc3 {[%emt 0:04:59]} 29. Nxc3 {[%emt 0:00:04]} Nd4 {[%emt 0:00:28]} 30.
Qe4 {[%emt 0:00:09]} f5 {[%emt 0:01:30]} 31. Qxb7 {[%emt 0:00:16]} Rxb7 {[%emt
0:00:02]} 32. Nd5 {[%emt 0:03:37]} Kd7 {[%emt 0:00:43]} 33. Kg2 {[%emt 0:01:57]
} 1/2-1/2

[Event "3eme tournoi de MI de JUVISY"]
[Site "Juvisy/Orge, France"]
[Date "2019.07.07"]
[Round "9.3"]
[White "DELORME, Alban"]
[Black "LAZO, Andrei"]
[Result "0-1"]
[ECO "C13"]
[WhiteElo "2327"]
[BlackElo "2279"]
[PlyCount "68"]
[EventDate "2019.??.??"]
[WhiteTeam "Echecs 16"]
[BlackTeam "Canal St Martin"]
[TimeControl "6600+1635"]
[WhiteClock "0:23:49"]
[BlackClock "0:05:40"]

1. e4 {[%emt 0:30:55]} e6 {[%emt 0:00:06]} 2. d4 {[%emt 0:00:07]} d5 {[%emt 0:
00:05]} 3. Nc3 {[%emt 0:00:07]} Nf6 {[%emt 0:00:06]} 4. Bg5 {[%emt 0:00:07]}
dxe4 {[%emt 0:00:05]} 5. Nxe4 {[%emt 0:00:05]} Be7 {[%emt 0:00:05]} 6. Bxf6 {
[%emt 0:00:08]} gxf6 {[%emt 0:00:05]} 7. Nf3 {[%emt 0:00:06]} f5 {[%emt 0:00:
05]} 8. Nc3 {[%emt 0:00:09]} a6 {[%emt 0:00:05]} 9. Qd2 {[%emt 0:04:13]} b5 {
[%emt 0:01:39]} 10. O-O-O {[%emt 0:00:24]} Bb7 {[%emt 0:00:06]} 11. Kb1 {[%emt
0:01:17]} Qd6 {[%emt 0:05:46]} 12. Qh6 {[%emt 0:05:51]} Nd7 {[%emt 0:00:33]}
13. Bd3 {[%emt 0:01:12]} b4 {[%emt 0:11:47]} 14. Na4 {[%emt 0:01:17]} O-O-O {
[%emt 0:06:59]} 15. Rhe1 {[%emt 0:00:08]} Rdg8 {[%emt 0:03:47]} 16. Nc5 {[%emt
0:00:35]} Nxc5 {[%emt 0:02:18]} 17. dxc5 {[%emt 0:00:02]} Qxc5 {[%emt 0:00:17]}
18. Ne5 {[%emt 0:00:13]} Bd6 {[%emt 0:27:40]} 19. Nxf7 {[%emt 0:04:21]} Rg6 {
[%emt 0:00:24]} 20. Qh5 {[%emt 0:02:16]} Rhg8 {[%emt 0:03:02]} 21. Qxh7 {[%emt
0:03:10]} R8g7 {[%emt 0:04:19]} 22. Qh5 {[%emt 0:03:24]} Kb8 {[%emt 0:12:36]}
23. Nd8 {[%emt 0:01:45]} Bd5 {[%emt 0:02:06]} 24. Bxa6 {[%emt 0:06:02]} Be7 {
[%emt 0:00:47]} 25. Rxd5 {[%emt 0:01:57]} exd5 {[%emt 0:06:19]} 26. Ne6 {[%emt
0:02:16]} Qxf2 {[%emt 0:00:36]} 27. Qd1 {[%emt 0:02:32]} Rh7 {[%emt 0:02:38]}
28. Bb5 {[%emt 0:06:24]} Rxg2 {[%emt 0:04:24]} 29. Nd4 {[%emt 0:05:10]} Qd2 {
[%emt 0:00:41]} 30. Qxd2 {[%emt 0:03:06]} Rxd2 {[%emt 0:00:07]} 31. c3 {[%emt
0:00:38]} Rhxh2 {[%emt 0:05:38]} 32. Rg1 {[%emt 0:03:22]} Rxb2+ {[%emt 0:01:52]
} 33. Kc1 {[%emt 0:00:02]} bxc3 {[%emt 0:03:17]} 34. a4 {[%emt 0:01:20]} Bg5+ {
[%emt 0:00:25]} 0-1

[Event "3eme tournoi de MI de JUVISY"]
[Site "Juvisy/Orge, France"]
[Date "2019.07.07"]
[Round "9.2"]
[White "BELKHODJA, Slim"]
[Black "NGUYEN, Vincent"]
[Result "1/2-1/2"]
[ECO "C00"]
[WhiteElo "2416"]
[BlackElo "2315"]
[PlyCount "117"]
[EventDate "2019.??.??"]
[WhiteTeam "J.E.E.N"]
[BlackTeam "Juvisy"]
[TimeControl "6600+770"]
[WhiteClock "1:01:47"]
[BlackClock "0:34:05"]

1. e4 {[%emt 0:00:08]} e6 {[%emt 0:00:06]} 2. Qe2 {[%emt 0:00:08]} Nc6 {[%emt
0:02:24]} 3. Nf3 {[%emt 0:02:12]} e5 {[%emt 0:00:08]} 4. g3 {[%emt 0:00:38]}
Bc5 {[%emt 0:00:37]} 5. Bg2 {[%emt 0:00:18]} d6 {[%emt 0:00:47]} 6. c3 {[%emt
0:00:53]} a5 {[%emt 0:07:37]} 7. O-O {[%emt 0:02:51]} Bg4 {[%emt 0:00:26]} 8.
h3 {[%emt 0:00:07]} Bh5 {[%emt 0:00:38]} 9. g4 {[%emt 0:08:58]} Bg6 {[%emt 0:
00:25]} 10. Rd1 {[%emt 0:03:50]} Bb6 {[%emt 0:07:41]} 11. d4 {[%emt 0:04:05]}
f6 {[%emt 0:00:18]} 12. Na3 {[%emt 0:01:34]} Qe7 {[%emt 0:05:00]} 13. Nc4 {
[%emt 0:00:38]} Ba7 {[%emt 0:00:20]} 14. d5 {[%emt 0:04:01]} Nd8 {[%emt 0:01:
31]} 15. Nh4 {[%emt 0:00:21]} Qd7 {[%emt 0:02:28]} 16. Be3 {[%emt 0:07:41]}
Bxe3 {[%emt 0:01:05]} 17. fxe3 {[%emt 0:02:27]} b6 {[%emt 0:03:44]} 18. b4 {
[%emt 0:00:45]} Nb7 {[%emt 0:00:29]} 19. Kh2 {[%emt 0:03:04]} Nh6 {[%emt 0:12:
28]} 20. Nd2 {[%emt 0:03:02]} Nf7 {[%emt 0:02:00]} 21. Nf1 {[%emt 0:00:27]} Ng5
{[%emt 0:13:20]} 22. Ng3 {[%emt 0:02:54]} Qa4 {[%emt 0:03:59]} 23. a3 {[%emt 0:
02:25]} Qd7 {[%emt 0:04:12]} 24. Rf1 {[%emt 0:01:16]} Rg8 {[%emt 0:02:10]} 25.
Nhf5 {[%emt 0:00:59]} Bxf5 {[%emt 0:03:33]} 26. Rxf5 {[%emt 0:02:50]} h6 {
[%emt 0:00:37]} 27. h4 {[%emt 0:00:32]} Nh7 {[%emt 0:00:36]} 28. Bh3 {[%emt 0:
00:32]} g5 {[%emt 0:05:41]} 29. Nh5 {[%emt 0:00:30]} Rg6 {[%emt 0:00:33]} 30.
Raf1 {[%emt 0:07:56]} Ke7 {[%emt 0:00:53]} 31. R5f2 {[%emt 0:00:58]} Qe8 {
[%emt 0:07:35]} 32. Qc4 {[%emt 0:02:03]} Qd7 {[%emt 0:00:39]} 33. Ng3 {[%emt 0:
03:36]} Nd8 {[%emt 0:07:06]} 34. Nf5+ {[%emt 0:03:10]} Ke8 {[%emt 0:00:09]} 35.
h5 {[%emt 0:00:17]} Rg8 {[%emt 0:00:04]} 36. Nxh6 {[%emt 0:00:20]} Rf8 {[%emt
0:00:06]} 37. Rc1 {[%emt 0:03:09]} Rh8 {[%emt 0:01:27]} 38. Nf5 {[%emt 0:01:43]
} Kf7 {[%emt 0:00:47]} 39. Bf1 {[%emt 0:00:32]} Nf8 {[%emt 0:00:53]} 40. Kg3 {
[%emt 0:00:20]} Rh7 {[%emt 0:05:30]} 41. Qb5 {[%emt 0:00:48]} Qc8 {[%emt 0:00:
13]} 42. Rfc2 {[%emt 0:02:49]} Nb7 {[%emt 0:01:36]} 43. Bc4 {[%emt 0:02:13]}
Rh8 {[%emt 0:07:04]} 44. Ba2 {[%emt 0:00:10]} Nd7 {[%emt 0:00:24]} 45. Qd3 {
[%emt 0:00:16]} Ra7 {[%emt 0:00:23]} 46. Kf3 {[%emt 0:01:27]} Qa8 {[%emt 0:00:
13]} 47. Bc4 {[%emt 0:00:39]} Nf8 {[%emt 0:01:03]} 48. Bb5 {[%emt 0:00:08]} Qc8
{[%emt 0:01:06]} 49. Bc6 {[%emt 0:02:15]} Nd8 {[%emt 0:01:25]} 50. Bb5 {[%emt
0:05:44]} Nb7 {[%emt 0:00:07]} 51. c4 {[%emt 0:00:32]} Nd7 {[%emt 0:00:28]} 52.
Qb3 {[%emt 0:00:27]} Kf8 {[%emt 0:04:06]} 53. Bxd7 {[%emt 0:03:16]} Qxd7 {
[%emt 0:00:04]} 54. c5 {[%emt 0:00:10]} dxc5 {[%emt 0:06:14]} 55. bxc5 {[%emt
0:00:43]} bxc5 {[%emt 0:00:03]} 56. Rxc5 {[%emt 0:00:53]} Nxc5 {[%emt 0:00:04]}
57. Qb8+ {[%emt 0:00:31]} Qe8 {[%emt 0:00:04]} 58. Qxa7 {[%emt 0:00:15]} Nb3 {
[%emt 0:00:56]} 59. Qxc7 {[%emt 0:00:29]} 1/2-1/2